fUSD/lending_fUSD_20240301
["ID","MTS","AMOUNT","RATE_DAILY","PERIOD"]
[315947691,1709298668730,-500.0,0.00022369,2]
[315947692,1709298668740,-555.27,0.00022369,2]
[315947693,1709298668749,-500.0,0.00022369,2]
[315947694,1709298668758,-500.0,0.00022369,2]
[315947695,1709298668767,-632.55,0.00022369,2]
[315947696,1709298668776,-500.0,0.00022369,2]
[315947697,1709298668785,-765.32,0.00022369,2]
[315947698,1709298668794,-1536.48,0.00022369,2]
[315947699,1709298668804,-6822.43,0.00022369,2]
[315947700,1709298668813,-1011.86,0.00022369,2]
[315947701,1709298668822,-500.0,0.0002237,2]
[315947702,1709298668831,-500.0,0.0002237,2]
[315947703,1709298668839,-500.0,0.0002237,2]
[315947704,1709298668850,-959.1,0.0002237,2]
[315947705,1709298668861,-500.8,0.0002237,2]
[315947706,1709298668869,-500.0,0.0002237,2]
[315947707,1709298668878,-614.3,0.0002237,2]
[315947708,1709298668887,-500.0,0.0002237,2]
[315947709,1709298668896,-500.0,0.0002237,2]
[315947710,1709298668905,-500.0,0.0002237,2]
[315947711,1709298668915,-1000.0,0.0002237,7]
[315947712,1709298668925,-500.0,0.0002237,2]
[315947713,1709298668934,-500.0,0.0002237,2]
[315947714,1709298668943,-500.0,0.0002237,2]
[315947715,1709298668951,-500.0,0.0002237,2]
[315947716,1709298668961,-639.44,0.0002237,2]
[315947717,1709298668970,-701.19,0.0002237,2]
[315947718,1709298668979,-637.04,0.0002237,2]
[315947719,1709298668989,-900.32,0.0002237,2]
[315947720,1709298668999,-500.0,0.0002237,2]
[315947721,1709298669011,-500.0,0.0002237,2]
[315947722,1709298669020,-500.0,0.0002237,2]
[315947723,1709298669030,-655.93,0.0002237,2]
[315947724,1709298669039,-500.0,0.0002237,2]
[315947725,1709298669049,-668.42,0.0002237,2]
[315947726,1709298669058,-500.0,0.0002237,2]
[315947727,1709298669067,-566.02,0.0002237,2]
[315947728,1709298669076,-500.0,0.0002237,2]
[315947729,1709298669085,-500.0,0.0002237,2]
[315947730,1709298669094,-633.31,0.0002237,2]
[315947731,1709298669106,-500.0,0.0002237,2]
[315947732,1709298669115,-500.0,0.0002237,2]
[315947733,1709298669124,-500.0,0.0002237,2]
[315947734,1709298669134,-1294.46,0.0002237,2]
[315947735,1709298669143,-1773.35,0.0002237,2]
[315947736,1709298669152,-1235.4,0.0002237,2]
[315947737,1709298669162,-543.19,0.0002237,2]
[315947738,1709298669171,-500.0,0.0002237,2]
[315947739,1709298669181,-1257.32,0.0002237,2]
[315947740,1709298669190,-500.0,0.0002237,2]
[315947741,1709298669199,-158.15,0.00022379,2]
[315947742,1709298669209,-171.76,0.00022379,2]
[315947743,1709298669221,-220.3,0.00022379,2]
[315947744,1709298669231,-718.74995318,0.00022397,2]
[315947745,1709298669240,-418.12847848,0.00022397,2]
[315947746,1709298669249,-500.0,0.00022397,2]
[315947747,1709298669259,-318.94473566,0.00022397,2]
[315947748,1709298669268,-510.16869994,0.00022397,2]
[315947749,1709298669277,-425.7560805,0.00022397,2]
[315947750,1709298669286,-500.0,0.00022397,2]
[315947751,1709298669295,-500.0,0.00022397,2]
[315947752,1709298669304,-577.88963967,0.00022397,2]
[315947753,1709298669313,-500.0,0.00022397,2]
[315947754,1709298669323,-500.0,0.00022397,2]
[315947755,1709298669332,-500.0,0.00022397,2]
[315947756,1709298669341,-151.0,0.00022397,7]
[315947757,1709298669353,-151.0,0.00022397,2]
[315947758,1709298669362,-236.8,0.00022397,2]
[315947759,1709298669370,-1000.0,0.00022399,2]
[315947760,1709298669379,-993.64119269,0.00022404,2]
[315947761,1709298669388,-6643.7462567,0.00022417,2]
[315947762,1709298669399,-1000.0,0.00022449,3]
[315947763,1709298669408,-1000.0,0.00022449,3]
[315947764,1709298669417,-1000.0,0.00022449,3]
[315947765,1709298669426,-1000.0,0.00022449,3]
[315947766,1709298669435,-1000.0,0.00022449,3]
[315947767,1709298669443,-2890.30832725,0.00022449,3]
[315947768,1709298669452,-785.73346571,0.00022449,3]
[315947769,1709298669461,-187.41658707,0.00022449,3]
[315947770,1709298669471,-1000.0,0.00022449,3]
[315947771,1709298669480,-224.89990449,0.00022449,3]
[315947772,1709298669489,-253.67369532,0.00022449,3]
[315947773,1709298669498,-1573.41204611,0.00022449,3]
[315947774,1709298669507,-419.68538127,0.00022449,3]
[315947775,1709298669517,-307.10957063,0.00022449,3]
[315947776,1709298669526,-265.43503966,0.00022449,3]
[315947777,1709298669535,-710.02712223,0.00022449,3]
[315947778,1709298669544,-1000.0,0.00022449,3]
[315947779,1709298669554,-266.64237243,0.00022449,3]
[315947780,1709298669563,-187.14445612,0.00022449,3]
[315947781,1709298669572,-1000.0,0.00022449,3]
[315947782,1709298669581,-500.0,0.00022449,3]
[315947783,1709298669590,-3370.40754799,0.00022449,3]
[315947784,1709298669601,-261.40993926,0.00022449,3]
[315947785,1709298669610,-159.08382342,0.00022463,2]
[315947786,1709298669619,-500.0,0.00022465,2]
[315947787,1709298669627,-169.5,0.00022465,2]
[315947788,1709298669636,-500.0,0.00022465,2]
[315947789,1709298669645,-500.0,0.00022465,2]
[315947790,1709298669654,-247.27,0.00022465,2]
[315947791,1709298669663,-151.0,0.00022465,7]
[315947792,1709298669672,-500.0,0.00022465,2]
[315947793,1709298669681,-524.86570353,0.00022465,2]
[315947794,1709298669690,-500.0,0.00022465,2]
[315947795,1709298669699,-269.650141,0.00022465,7]
[315947796,1709298669710,-500.0,0.00022465,2]
[315947797,1709298669719,-500.0,0.00022465,2]
[315947798,1709298669728,-500.0,0.00022465,2]
[315947799,1709298669738,-500.0,0.00022465,2]
[315947800,1709298669747,-500.0,0.00022465,2]
[315947801,1709298669756,-500.0,0.00022465,2]
[315947802,1709298669766,-512.36000596,0.00022465,2]
[315947803,1709298669775,-500.0,0.00022465,2]
[315947804,1709298669784,-500.0,0.00022465,2]
[315947805,1709298669793,-500.0,0.00022465,2]
[315947806,1709298669802,-500.0,0.00022465,2]
[315947807,1709298669811,-500.0,0.00022465,2]
[315947808,1709298669821,-500.0,0.00022465,2]
[315947809,1709298669831,-500.0,0.00022465,2]
[315947810,1709298669840,-500.0,0.00022465,2]
[315947811,1709298669851,-500.0,0.00022465,2]
[315947812,1709298669861,-526.29,0.00022465,2]
[315947813,1709298669871,-500.0,0.00022465,2]
[315947814,1709298669880,-500.0,0.00022465,2]
[315947815,1709298669890,-500.0,0.00022465,2]
[315947816,1709298669900,-500.0,0.00022465,2]
[315947817,1709298669910,-500.0,0.00022465,2]
[315947818,1709298669919,-530.01699444,0.00022465,2]
[315947819,1709298669929,-397.98,0.00022465,2]
[315947820,1709298669938,-500.0,0.00022465,2]
[315947821,1709298669947,-500.0,0.00022465,2]
[315947822,1709298669956,-500.0,0.00022465,2]
[315947823,1709298669965,-500.0,0.00022465,2]
[315947824,1709298669974,-500.0,0.00022465,2]
[315947825,1709298669983,-500.0,0.00022465,2]
[315947826,1709298669992,-500.0,0.00022465,2]
[315947827,1709298670001,-483.16,0.00022465,2]
[315947828,1709298670010,-528.13973247,0.00022465,2]
[315947829,1709298670019,-500.0,0.00022465,2]
[315947830,1709298670028,-500.0,0.00022465,2]
[315947831,1709298670037,-893.58,0.00022465,2]
[315947832,1709298670046,-500.0,0.00022465,2]
[315947833,1709298670055,-500.0,0.00022465,2]
[315947834,1709298670064,-500.0,0.00022465,2]
[315947835,1709298670073,-500.0,0.00022465,2]
[315947836,1709298670082,-500.0,0.00022465,2]
[315947837,1709298670091,-500.0,0.00022465,2]
[315947838,1709298670102,-629.42438113,0.00022465,2]
[315947839,1709298670111,-500.0,0.00022465,2]
[315947840,1709298670121,-500.0,0.00022465,2]
[315947841,1709298670130,-678.15,0.00022465,2]
[315947842,1709298670139,-500.0,0.00022465,2]
[315947843,1709298670148,-151.0,0.00022465,7]
[315947844,1709298670157,-500.0,0.00022465,2]
[315947845,1709298670166,-500.0,0.00022465,2]
[315947846,1709298670175,-500.0,0.00022465,2]
[315947847,1709298670184,-480.66,0.00022465,2]
[315947848,1709298670193,-500.0,0.00022465,2]
[315947849,1709298670202,-500.0,0.00022465,2]
[315947850,1709298670213,-500.0,0.00022465,2]
[315947851,1709298670222,-500.0,0.00022465,2]
[315947852,1709298670234,-500.0,0.00022465,2]
[315947853,1709298670243,-400.0,0.00022465,2]
[315947854,1709298670252,-500.0,0.00022465,2]
[315947855,1709298670262,-500.0,0.00022465,2]
[315947856,1709298670271,-500.0,0.00022465,2]
[315947857,1709298670281,-500.0,0.00022465,2]
[315947858,1709298670290,-151.0,0.00022465,7]
[315947859,1709298670299,-500.0,0.00022465,2]
[315947860,1709298670313,-500.0,0.00022465,2]
[315947861,1709298670322,-500.0,0.00022465,2]
[315947862,1709298670332,-500.0,0.00022465,2]
[315947863,1709298670342,-500.0,0.00022465,2]
[315947864,1709298670354,-500.0,0.00022465,2]
[315947865,1709298670363,-543.57,0.00022465,2]
[315947866,1709298670373,-277.46,0.00022465,2]
[315947867,1709298670382,-500.0,0.00022465,2]
[315947868,1709298670391,-500.0,0.00022465,2]
[315947869,1709298670400,-500.0,0.00022465,2]
[315947870,1709298670410,-500.0,0.00022465,2]
[315947871,1709298670419,-500.0,0.00022465,2]
[315947872,1709298670429,-465.32,0.00022465,2]
[315947873,1709298670438,-500.0,0.00022465,2]
[315947874,1709298670447,-500.0,0.00022465,2]
[315947875,1709298670456,-633.54,0.00022465,2]
[315947876,1709298670466,-500.0,0.00022465,2]
[315947877,1709298670475,-500.0,0.00022465,2]
[315947878,1709298670484,-500.0,0.00022465,2]
[315947879,1709298670493,-500.0,0.00022465,2]
[315947880,1709298670503,-500.0,0.00022465,2]
[315947881,1709298670512,-500.0,0.00022465,2]
[315947882,1709298670521,-500.0,0.00022465,2]
[315947883,1709298670530,-500.0,0.00022465,2]
[315947884,1709298670539,-500.0,0.00022465,2]
[315947885,1709298670549,-500.0,0.00022465,2]
[315947886,1709298670558,-500.0,0.00022465,2]
[315947887,1709298670567,-555.34,0.00022465,2]
[315947888,1709298670576,-338.7,0.00022465,2]
[315947889,1709298670585,-500.0,0.00022465,2]
[315947890,1709298670595,-500.0,0.00022465,2]
[315947891,1709298670606,-500.0,0.00022465,2]
[315947892,1709298670615,-276.54109171,0.00022465,2]
[315947893,1709298670625,-500.0,0.00022465,2]
[315947894,1709298670635,-600.41,0.00022465,2]
[315947895,1709298670645,-500.0,0.00022465,2]
[315947896,1709298670655,-500.0,0.00022465,2]
[315947897,1709298670664,-568.28,0.00022465,2]
[315947898,1709298670674,-500.0,0.00022465,2]
[315947899,1709298670683,-457.8,0.00022465,2]
[315947900,1709298670693,-516.182112,0.00022465,2]
[315947901,1709298670702,-500.0,0.00022465,2]
[315947902,1709298670712,-500.0,0.00022465,2]
[315947903,1709298670721,-500.0,0.00022465,2]
[315947904,1709298670730,-500.0,0.00022465,2]
[315947905,1709298670740,-500.0,0.00022465,2]
[315947906,1709298670749,-500.0,0.00022465,2]
[315947907,1709298670758,-500.0,0.00022465,2]
[315947908,1709298670768,-500.0,0.00022465,2]
[315947909,1709298670778,-646.67,0.00022465,2]
[315947910,1709298670787,-500.0,0.00022465,2]
[315947911,1709298670797,-500.0,0.00022465,2]
[315947912,1709298670807,-500.0,0.00022465,2]
[315947913,1709298670816,-500.0,0.00022465,2]
[315947914,1709298670827,-500.0,0.00022465,2]
[315947915,1709298670837,-150.0,0.00022465,2]
[315947916,1709298670846,-229.48,0.00022465,2]
[315947917,1709298670856,-500.0,0.00022465,2]
[315947918,1709298670866,-500.0,0.00022465,2]
[315947919,1709298670875,-500.0,0.00022465,2]
[315947920,1709298670884,-500.0,0.00022465,2]
[315947921,1709298670894,-500.0,0.00022465,2]
[315947922,1709298670905,-371.1,0.00022465,2]
[315947923,1709298670915,-500.0,0.00022465,2]
[315947924,1709298670925,-500.0,0.00022465,2]
[315947925,1709298670935,-500.0,0.00022465,2]
[315947926,1709298670944,-500.0,0.00022465,2]
[315947927,1709298670954,-500.0,0.00022465,2]
[315947928,1709298670964,-500.0,0.00022465,2]
[315947929,1709298670974,-500.0,0.00022465,2]
[315947930,1709298670983,-500.0,0.00022465,2]
[315947931,1709298670993,-500.0,0.00022465,2]
[315947932,1709298671002,-500.0,0.00022465,2]
[315947933,1709298671012,-555.68,0.00022465,2]
[315947934,1709298671021,-500.0,0.00022465,2]
[315947935,1709298671031,-500.0,0.00022465,2]
[315947936,1709298671041,-500.0,0.00022465,2]
[315947937,1709298671051,-374.16204848,0.00022465,2]
[315947938,1709298671061,-500.0,0.00022465,2]
[315947939,1709298671070,-500.0,0.00022465,2]
[315947940,1709298671079,-500.0,0.00022465,2]
[315947941,1709298671089,-151.0,0.00022465,2]
[315947942,1709298671098,-500.0,0.00022465,2]
[315947943,1709298671108,-500.0,0.00022465,2]
[315947944,1709298671117,-500.0,0.00022465,2]
[315947945,1709298671127,-500.0,0.00022465,2]
[315947946,1709298671136,-500.0,0.00022465,2]
[315947947,1709298671148,-500.0,0.00022465,2]
[315947948,1709298671158,-500.0,0.00022465,2]
[315947949,1709298671167,-500.0,0.00022465,2]
[315947950,1709298671176,-500.0,0.00022465,2]
[315947951,1709298671185,-717.74,0.00022465,2]
[315947952,1709298671195,-500.0,0.00022465,2]
[315947953,1709298671205,-500.0,0.00022465,2]
[315947954,1709298671215,-304.58,0.00022465,2]
[315947955,1709298671225,-500.0,0.00022465,2]
[315947956,1709298671238,-500.0,0.00022465,2]
[315947957,1709298671248,-500.0,0.00022465,2]
[315947958,1709298671258,-500.0,0.00022465,2]
[315947959,1709298671268,-500.0,0.00022465,2]
[315947960,1709298671277,-789.48,0.00022465,2]
[315947961,1709298671286,-500.0,0.00022465,2]
[315947962,1709298671296,-561.12900071,0.00022465,2]
[315947963,1709298671306,-500.0,0.00022465,2]
[315947964,1709298671316,-500.0,0.00022465,2]
[315947965,1709298671325,-500.0,0.00022465,2]
[315947966,1709298671334,-657.73,0.00022465,2]
[315947967,1709298671343,-500.0,0.00022465,2]
[315947968,1709298671354,-500.0,0.00022465,2]
[315947969,1709298671364,-500.0,0.00022465,2]
[315947970,1709298671374,-529.82,0.00022465,2]
[315947971,1709298671383,-512.78034382,0.00022465,2]
[315947972,1709298671392,-541.86990998,0.00022465,2]
[315947973,1709298671403,-500.0,0.00022465,2]
[315947974,1709298671412,-500.0,0.00022465,2]
[315947975,1709298671422,-500.0,0.00022465,2]
[315947976,1709298671431,-635.21,0.00022465,2]
[315947977,1709298671440,-500.0,0.00022465,2]
[315947978,1709298671450,-500.0,0.00022465,2]
[315947979,1709298671459,-500.0,0.00022465,2]
[315947980,1709298671469,-600.2,0.00022465,2]
[315947981,1709298671479,-500.0,0.00022465,2]
[315947982,1709298671488,-571.90191837,0.00022465,2]
[315947983,1709298671498,-500.0,0.00022465,2]
[315947984,1709298671507,-500.0,0.00022465,2]
[315947985,1709298671517,-500.0,0.00022465,2]
[315947986,1709298671527,-500.0,0.00022465,2]
[315947987,1709298671536,-500.0,0.00022465,2]
[315947988,1709298671545,-401.83858939,0.00022465,2]
[315947989,1709298671555,-500.0,0.00022465,2]
[315947990,1709298671564,-520.3354296,0.00022465,2]
[315947991,1709298671574,-500.0,0.00022465,2]
[315947992,1709298671583,-500.0,0.00022465,2]
[315947993,1709298671593,-500.0,0.00022465,2]
[315947994,1709298671603,-500.0,0.00022465,2]
[315947995,1709298671613,-500.0,0.00022465,2]
[315947996,1709298671622,-500.0,0.00022465,2]
[315947997,1709298671632,-500.0,0.00022465,2]
[315947998,1709298671641,-500.0,0.00022465,2]
[315947999,1709298671651,-500.0,0.00022465,2]
[315948000,1709298671663,-500.0,0.00022465,2]
[315948001,1709298671674,-500.0,0.00022465,2]
[315948002,1709298671684,-500.0,0.00022465,2]
[315948003,1709298671693,-332.70458603,0.00022465,2]
[315948004,1709298671703,-500.0,0.00022465,2]
[315948005,1709298671713,-500.0,0.00022465,2]
[315948006,1709298671722,-500.0,0.00022465,2]
[315948007,1709298671732,-500.0,0.00022465,2]
[315948008,1709298671741,-500.0,0.00022465,2]
[315948009,1709298671752,-507.84635745,0.00022465,2]
[315948010,1709298671761,-500.0,0.00022465,2]
[315948011,1709298671771,-705.36,0.00022465,2]
[315948012,1709298671781,-500.0,0.00022465,2]
[315948013,1709298671791,-500.0,0.00022465,2]
[315948014,1709298671800,-500.0,0.00022465,2]
[315948015,1709298671810,-500.0,0.00022465,2]
[315948016,1709298671820,-500.0,0.00022465,2]
[315948017,1709298671829,-616.52866754,0.00022465,2]
[315948018,1709298671839,-500.0,0.00022465,2]
[315948019,1709298671850,-500.0,0.00022465,2]
[315948020,1709298671859,-500.0,0.00022465,2]
[315948021,1709298671869,-500.0,0.00022465,2]
[315948022,1709298671879,-500.0,0.00022465,2]
[315948023,1709298671888,-500.0,0.00022465,2]
[315948024,1709298671898,-500.0,0.00022465,2]
[315948025,1709298671908,-500.0,0.00022465,2]
[315948026,1709298671918,-500.0,0.00022465,2]
[315948027,1709298671927,-500.0,0.00022465,2]
[315948028,1709298671937,-500.0,0.00022465,2]
[315948029,1709298671946,-500.0,0.00022465,2]
[315948030,1709298671956,-530.57,0.00022465,2]
[315948031,1709298671966,-500.0,0.00022465,2]
[315948032,1709298671975,-500.0,0.00022465,2]
[315948033,1709298671986,-500.0,0.00022465,2]
[315948034,1709298671996,-500.0,0.00022465,2]
[315948035,1709298672006,-500.0,0.00022465,2]
[315948036,1709298672016,-500.0,0.00022465,2]
[315948037,1709298672025,-500.0,0.00022465,2]
[315948038,1709298672035,-500.0,0.00022465,2]
[315948039,1709298672045,-636.87123193,0.00022465,2]
[315948040,1709298672055,-500.0,0.00022465,2]
[315948041,1709298672065,-500.0,0.00022465,2]
[315948042,1709298672075,-500.0,0.00022465,2]
[315948043,1709298672085,-500.0,0.00022465,2]
[315948044,1709298672094,-500.0,0.00022465,2]
[315948045,1709298672106,-500.0,0.00022465,2]
[315948046,1709298672116,-500.0,0.00022465,2]
[315948047,1709298672125,-505.76,0.00022465,2]
[315948048,1709298672135,-500.0,0.00022465,2]
[315948049,1709298672144,-500.0,0.00022465,2]
[315948050,1709298672154,-151.0,0.00022465,7]
[315948051,1709298672163,-271.670678,0.00022465,7]
[315948052,1709298672172,-1406.1,0.00022465,2]
[315948053,1709298672182,-500.0,0.00022465,2]
[315948054,1709298672191,-439.061533,0.00022465,7]
[315948055,1709298672201,-439.061533,0.00022465,7]
[315948056,1709298672210,-522.49,0.00022465,2]
[315948057,1709298672220,-500.0,0.00022465,2]
[315948058,1709298672233,-373.32012053,0.00022465,2]
[315948059,1709298672244,-500.0,0.00022465,2]
[315948060,1709298672255,-439.061533,0.00022465,7]
[315948061,1709298672264,-500.0,0.00022465,2]
[315948062,1709298672274,-151.0,0.00022465,7]
[315948063,1709298672284,-439.061533,0.00022465,7]
[315948064,1709298672294,-241.429331,0.00022465,7]
[315948065,1709298672306,-500.0,0.00022465,2]
[315948066,1709298672316,-500.0,0.00022465,2]
[315948067,1709298672326,-3533.01,0.00022465,2]
[315948068,1709298672335,-1662.91,0.00022465,2]
[315948069,1709298672345,-500.0,0.00022465,2]
[315948070,1709298672356,-500.0,0.00022465,2]
[315948071,1709298672365,-657.28,0.00022465,2]
[315948072,1709298672375,-572.66,0.00022465,2]
[315948073,1709298672385,-601.52,0.00022465,2]
[315948074,1709298672396,-332.99662742,0.00022465,2]
[315948075,1709298672406,-500.0,0.00022465,2]
[315948076,1709298672415,-587.29,0.00022465,2]
[315948077,1709298672425,-500.0,0.00022465,2]
[315948078,1709298672435,-15636.82,0.00022465,2]
[315948079,1709298672445,-500.0,0.00022465,2]
[315948080,1709298672455,-673.44,0.00022465,2]
[315948081,1709298672465,-669.71,0.00022465,2]
[315948082,1709298672474,-500.0,0.00022465,2]
[315948083,1709298672484,-500.0,0.00022465,2]
[315948084,1709298672494,-500.0,0.00022465,2]
[315948085,1709298672503,-578.57,0.00022465,2]
[315948086,1709298672513,-582.050238,0.00022465,7]
[315948087,1709298672523,-582.050238,0.00022465,7]
[315948088,1709298672532,-500.0,0.00022465,2]
[315948089,1709298672542,-151.0,0.00022465,7]
[315948090,1709298672551,-655.3,0.00022465,2]
[315948091,1709298672560,-151.0,0.00022465,7]
[315948092,1709298672570,-1675.83,0.00022465,2]
[315948093,1709298672580,-582.050238,0.00022465,7]
[315948094,1709298672590,-530.31,0.00022465,2]
[315948095,1709298672601,-500.0,0.00022465,2]
[315948096,1709298672610,-500.0,0.00022465,2]
[315948097,1709298672620,-582.050238,0.00022465,7]
[315948098,1709298672630,-500.0,0.00022465,2]
[315948099,1709298672639,-500.0,0.00022465,2]
[315948100,1709298672649,-500.0,0.00022465,2]
[315948101,1709298672658,-637.19805511,0.00022465,2]
[315948102,1709298672669,-227.52302328,0.00022465,2]
[315948103,1709298672678,-517.46,0.00022465,2]
[315948104,1709298672688,-500.0,0.00022465,2]
[315948105,1709298672698,-500.0,0.00022465,2]
[315948106,1709298672709,-1013.52,0.00022465,2]
[315948107,1709298672719,-1163.79,0.00022465,2]
[315948108,1709298672729,-500.0,0.00022465,2]
[315948109,1709298672944,-180.484245,0.00022465,7]
[315948110,1709298672954,-500.0,0.00022465,2]
[315948111,1709298672964,-180.484245,0.00022465,7]
[315948112,1709298672973,-500.0,0.00022465,2]
[315948113,1709298672983,-500.0,0.00022465,2]
[315948114,1709298672992,-500.0,0.00022465,2]
[315948115,1709298673002,-590.48,0.00022465,2]
[315948116,1709298673012,-500.0,0.00022465,2]
[315948117,1709298673021,-180.484245,0.00022465,7]
[315948118,1709298673031,-500.0,0.00022465,2]
[315948119,1709298673040,-180.484245,0.00022465,7]
[315948120,1709298673050,-615.89,0.00022465,2]
[315948121,1709298673060,-731.35,0.00022465,2]
[315948122,1709298673070,-868.51,0.00022465,2]
[315948123,1709298673079,-151.487333,0.00022465,7]
[315948124,1709298673089,-151.487333,0.00022465,7]
[315948125,1709298673099,-500.0,0.00022465,2]
[315948126,1709298673108,-500.0,0.00022465,2]
[315948127,1709298673118,-500.0,0.00022465,2]
[315948128,1709298673127,-500.0,0.00022465,2]
[315948129,1709298673137,-500.0,0.00022465,2]
[315948130,1709298673146,-510.82,0.00022465,2]
[315948131,1709298673155,-151.487333,0.00022465,7]
[315948132,1709298673165,-151.487333,0.00022465,7]
[315948133,1709298673175,-500.0,0.00022465,2]
[315948134,1709298673184,-500.0,0.00022465,2]
[315948135,1709298673194,-652.44,0.00022465,2]
[315948136,1709298673203,-560.226538,0.00022465,7]
[315948137,1709298673215,-560.226538,0.00022465,7]
[315948138,1709298673225,-500.0,0.00022465,2]
[315948139,1709298673235,-1541.613533,0.00022465,7]
[315948140,1709298673244,-1106.83,0.00022465,2]
[315948141,1709298673255,-1845.06,0.00022465,2]
[315948142,1709298673265,-1541.613533,0.00022465,7]
[315948143,1709298673274,-500.0,0.00022465,2]
[315948144,1709298673284,-560.226538,0.00022465,7]
[315948145,1709298673293,-560.226538,0.00022465,7]
[315948146,1709298673305,-671.96,0.00022465,2]
[315948147,1709298673315,-500.0,0.00022465,2]
[315948148,1709298673325,-1541.613533,0.00022465,7]
[315948149,1709298673335,-500.0,0.00022465,2]
[315948150,1709298673344,-500.0,0.00022465,2]
[315948151,1709298673356,-1541.613533,0.00022465,7]
[315948152,1709298673366,-1175.17,0.00022465,2]
[315948153,1709298673375,-500.0,0.00022465,2]
[315948154,1709298673384,-801.45,0.00022465,2]
[315948155,1709298673394,-500.0,0.00022465,2]
[315948156,1709298673403,-500.0,0.00022465,2]
[315948157,1709298673412,-500.0,0.00022465,2]
[315948158,1709298673422,-500.0,0.00022465,2]
[315948159,1709298673431,-500.0,0.00022465,2]
[315948160,1709298673441,-500.0,0.00022465,2]
[315948161,1709298673450,-500.0,0.00022465,2]
[315948162,1709298673460,-151.0,0.00022465,7]
[315948163,1709298673469,-500.0,0.00022465,2]
[315948164,1709298673478,-500.0,0.00022465,2]
[315948165,1709298673488,-151.0,0.00022465,7]
[315948166,1709298673498,-863.76,0.00022465,2]
[315948167,1709298673508,-758.89,0.00022465,2]
[315948168,1709298673518,-582.06,0.00022465,2]
[315948169,1709298673527,-500.0,0.00022465,2]
[315948170,1709298673537,-163.342664,0.00022465,7]
[315948171,1709298673547,-1319.22,0.00022465,2]
[315948172,1709298673557,-568.6,0.00022465,2]
[315948173,1709298673567,-500.0,0.00022465,2]
[315948174,1709298673576,-522.06,0.00022465,2]
[315948175,1709298673586,-500.0,0.00022465,2]
[315948176,1709298673595,-800.22,0.00022465,2]
[315948177,1709298673607,-277.18,0.00022465,2]
[315948178,1709298673616,-500.0,0.00022465,2]
[315948179,1709298673625,-500.0,0.00022465,2]
[315948180,1709298673634,-1270.93,0.00022465,2]
[315948181,1709298673643,-500.0,0.00022465,2]
[315948182,1709298673652,-500.0,0.00022465,2]
[315948183,1709298673662,-500.0,0.00022465,2]
[315948184,1709298673671,-500.0,0.00022465,2]
[315948185,1709298673681,-1064.6,0.00022465,2]
[315948186,1709298673690,-760.87,0.00022465,2]
[315948187,1709298673699,-500.0,0.00022465,2]
[315948188,1709298673708,-271.809942,0.00022465,7]
[315948189,1709298673717,-271.809942,0.00022465,7]
[315948190,1709298673726,-500.0,0.00022465,2]